Cogmind - Beta 16 @@@ ROGUE MODE // 2025.11.07 @ 21:47:16 Player: QXander Result: Self-destructed Performance ------------- Evolutions (2) 1000 Regions Visited (4) 800 Robots Destroyed (21) 105 Value Destroyed (467) 467 Prototype IDs (0) 0 Alien Tech Used (0) 0 Bonus (70) 70 TOTAL SCORE: 2442 Bonus ------- Follower Combat Kills 70 Cogmind --------- Core Integrity 454/550 Matter 290/300 Energy 28/100 System Corruption 9% Temperature Cool (0) Movement Rolling (100) Location -8/Materials Parts ------- > --- POWER (1) -------- (None) > --- PROPULSION (3) --- Compact Wheel Armored Huge Wheel > --- UTILITY (5) ------ Improved Heat Sink Small Storage Unit Signal Interpreter Kinecellerator > --- WEAPON (2) ------- Arc Projector > --- INVENTORY (8) ---- Micro Nuclear Core Compact Wheel Compact Wheel Arc Projector Peak State ------------ > --- POWER ------------ Improved Ion Engine > --- PROPULSION ------- Compact Wheel Armored Huge Wheel > --- UTILITY ---------- Improved Heat Sink Small Storage Unit Visual Processing Unit Signal Interpreter Kinecellerator > --- WEAPON ----------- Arc Projector Arc Projector > --- INVENTORY -------- Micro Nuclear Core Compact Wheel Compact Wheel Arc Projector Arc Projector [Rating: 31] Favorites ----------- Power Improved Ion Engine Engine Improved Ion Engine Propulsion Compact Wheel Wheel Compact Wheel Utility Small Storage Unit Device Kinecellerator Storage Small Storage Unit Processor Signal Interpreter Protection Light Armor Plating Weapon Heavy Hammer Energy Gun Small Laser Energy Cannon Plasma Cannon Ballistic Gun Assault Rifle Launcher Grenade Launcher Impact Weapon Heavy Hammer Build | -11 -10 -9 -9 -8 ------- Run | Yrd Mat Mat Min Mat Slots Evolved 4 | . . 2 . 2 Power . | . . . . . Propulsion 1 | . . . . 1 Utility 3 | . . 2 . 1 Weapon . | . . . . . Parts Attached 28 | 6 4 8 3 7 Power 4 | 1 1 2 . . Engine 4 | 1 1 2 . . Core . | . . . . . Reactor . | . . . . . Propulsion 8 | 2 1 3 1 1 Treads . | . . . . . Leg . | . . . . . Wheel 8 | 2 1 3 1 1 Hover . | . . . . . Flight . | . . . . . Utility 7 | 1 2 1 1 2 Device 3 | . 1 . 1 1 Storage 1 | 1 . . . . Processor 2 | . 1 . . 1 Hackware . | . . . . . Protection 1 | . . 1 . . Artifact . | . . . . . Weapon 9 | 2 . 2 1 4 Energy Gun 5 | 1 . . . 4 Energy Cannon 1 | . . . 1 . Ballistic Gun 1 | 1 . . . . Ballistic Cannon . | . . . . . Launcher 1 | . . 1 . . Special Weapon . | . . . . . Impact Weapon 1 | . . 1 . . Slashing Weapon . | . . . . . Piercing Weapon . | . . . . . Special Melee Weapon . | . . . . . Unidentified Prototypes . | . . . . . Parts Lost 6 | . 1 . . 5 Power 2 | . 1 . . 1 Propulsion . | . . . . . Utility 2 | . . . . 2 Weapon 2 | . . . . 2 Highest Loss Streak 4 | . 1 . . 4 To Critical Strikes . | . . . . . Average Backups 4 | . 2 3 5 4 Power . | . . . 1 1 Propulsion 2 | . 2 2 3 2 Utility . | . . . . . Weapon . | . . . 1 1 Tool/Special . | . . . . . Unused Backups 5 | . . 1 1 3 Power 2 | . . . 1 1 Propulsion 2 | . . 1 . 1 Utility . | . . . . . Weapon 1 | . . . . 1 Tool/Special . | . . . . . Average Slot Usage (%) 87 | . 94 86 87 84 Engine 10 | . 10 11 11 9 Wheel 18 | . 28 21 13 18 Device 6 | . 4 . 8 14 Storage 11 | . 14 11 11 9 Processor 10 | . 8 11 11 10 Protection 8 | . . 10 11 5 Energy Gun 4 | . 12 3 . 11 Energy Cannon 3 | . . . 8 2 Ballistic Gun 3 | . 14 6 . . Launcher 2 | . . 4 2 . Impact Weapon 7 | . . 7 11 3 Peak Build Rating 31 | 6 7 10 23 31 Average Rating 16 | 4 6 9 20 27 On Entrance 9 | . 6 7 10 23 Avg Prop Armor Cover (%) . | . . . . . Naked Turns . | . . . . . Heaviest Build 29 | 13 14 21 29 29 Greatest Support 44 | 20 26 32 32 44 Greatest Overweight (x) 1 | . . 1 1 . Average Overweight (x) . | . . . . . Largest Inventory Capacity 8 | 8 8 8 8 8 Average Capacity 7 | 7 8 8 8 8 Most Carried 8 | 1 4 6 8 7 Average Carried 4 | . 2 3 5 4 Final Capacity 8 | 8 8 8 8 8 Final Carried 6 | 1 3 6 5 4 Class Distribution -------------------- 100% | Mutant Dominant Class ---------------- Mutant | -10/Materials Mutant | -9/Materials Mutant | -9/Mines Mutant | -8/Materials Resources | -11 -10 -9 -9 -8 ----------- Run | Yrd Mat Mat Min Mat Matter Collected 585 | 278 48 129 80 50 Remotely . | . . . . . Salvage Created 747 | 91 90 137 61 368 Parts 49 | 2 7 9 5 26 Haulers Intercepted . | . . . . . Recyclers Shooed 1 | . . 1 . . Parts Field Recycled . | . . . . . Retrieved Matter . | . . . . . Parts Self-Destructed . | . . . . . Prevented . | . . . . . Parts Restored . | . . . . . Kills | -11 -10 -9 -9 -8 ------- Run | Yrd Mat Mat Min Mat Combat Hostiles Destroyed 16 | . . 5 3 8 Melee 2 | . . 1 1 . Guns 10 | . . 3 . 7 Cannons 3 | . . . 2 1 Classes Destroyed 8 | 1 1 3 . 3 Builder 1 | . 1 . . . Recycler 2 | 1 1 . . . Watcher 2 | . . . . 2 Swarmer 9 | . . 3 2 4 Grunt 4 | . . 1 1 2 Brawler 1 | . . . . 1 Duelist 1 | . . 1 . . Sentry 1 | . . . . 1 Best Kill Streak 5 | 1 1 2 1 5 Combat Bots Only 4 | . . 2 1 4 Max Kills in Single Turn 2 | 1 1 1 1 2 Gunslinging 1 | . . . . 1 Exploded . | . . . . . Melee 1 | . . 1 1 . Uniques/NPCs Destroyed . | . . . . . Combat | -11 -10 -9 -9 -8 -------- Run | Yrd Mat Mat Min Mat Hostile Shots Fired 119 | . . 40 15 64 Missed 33 | . . 10 5 18 Hits 86 | . . 30 10 46 Melee 4 | . . 1 1 2 Projectile 82 | . . 29 9 44 Critical Strikes 3 | . . 1 1 1 Damage Taken 1101 | . 46 300 113 642 Core 185 | . . 63 26 96 Absorbed by Shields . | . . . . . Core Remaining (%) 92 | 100 100 . 77 . Volleys Fired 66 | 6 7 13 11 29 Largest 2 | 2 2 2 1 2 Hottest 110 | 60 60 60 80 110 Shots Fired 104 | 12 12 22 11 47 Gun 90 | 12 12 22 . 44 Cannon 12 | . . . 9 3 Launcher 2 | . . . 2 . Special . | . . . . . Kinetic 25 | 6 6 13 . . Thermal 33 | 6 6 9 9 3 Explosive 2 | . . . 2 . Electromagnetic 44 | . . . . 44 Robot Hit Streak 8 | 3 4 8 3 6 Robot Miss Streak 6 | 3 6 3 3 4 Penetration Max . | . . . . . Secondary Targets 3 | . . 1 . 2 Max Gunslinging Chain 1 | . . 1 . 1 Shots Hit Robots 64 | 7 5 16 8 28 Core Hits 33 | 2 2 7 5 17 Critical Kills 1 | . . 1 . . Critical Parts Destroyed 1 | . . 1 . . Critical Strikes 2 | . . 2 . . Smash 2 | . . 2 . . Melee Attacks 16 | . . 10 6 . Impact 16 | . . 10 6 . Slashing . | . . . . . Piercing . | . . . . . Sneak Attacks 1 | . . . 1 . Combat Hostiles . | . . . . . Follow-up Attacks . | . . . . . Damage Inflicted 1155 | 82 61 257 336 419 Guns 660 | 82 61 147 . 370 Cannons 121 | . . . 72 49 Explosions 95 | . . . 95 . Melee 279 | . . 110 169 . Ramming . | . . . . . Kinetic 154 | 39 26 89 . . Thermal 257 | 43 35 58 72 49 Explosive 95 | . . . 95 . Electromagnetic 370 | . . . . 370 Impact 279 | . . 110 169 . Slashing . | . . . . . Piercing . | . . . . . Highest Corruption 9 | . 1 . . 9 Average Corruption 3 | . 1 . . 8 Corruption Purged . | . . . . . Corruption Blocked . | . . . . . Effects 3 | . 1 . . 2 Energy Discharges 1 | . . . . 1 Data Loss (minor) 1 | . . . . 1 Weapon Failures 1 | . 1 . . . Overload Shots . | . . . . . Overflow Damage 68 | . . 42 26 . Projectiles . | . . . . . Explosions 2 | . . . 2 . Melee 66 | . . 42 24 . Knockbacks 1 | . . . 1 . Impact 1 | . . . 1 . Kinetic . | . . . . . Secondary . | . . . . . Self-Inflicted Damage . | . . . . . Shots . | . . . . . Rammed . | . . . . . Targets Rammed . | . . . . . Kicked . | . . . . . Crushed . | . . . . . Highest Temperature 230 | . . 24 230 54 Average Temperature 49 | . . 18 108 16 Received Heat Transfer 303 | . . 33 12 258 Siege Activations . | . . . . . Martial Activations . | . . . . . Shielding Activations . | . . . . . Robots Disrupted . | . . . . . Combat Hostiles . | . . . . . Robots Corrupted 1 | . . 1 . . Combat Hostiles 1 | . . 1 . . Parts Fried . | . . . . . Impact Corruptions 6 | . . 3 3 . Robots Melted . | . . . . . Combat Hostiles . | . . . . . Parts Melted 1 | . . . . 1 Heat Transferred 550 | 100 75 125 150 100 Parts Sabotaged . | . . . . . Parts Stolen . | . . . . . Parts Stripped . | . . . . . Power Chain Reactions . | . . . . . Alert | -11 -10 -9 -9 -8 ------- Run | Yrd Mat Mat Min Mat Maximum Alert Level . | . . . . . Low Security (%) 100 | 100 100 100 100 100 Level 1 . | . . . . . Level 2 . | . . . . . Level 3 . | . . . . . Level 4 . | . . . . . Level 5 . | . . . . . High Security . | . . . . . Max Security . | . . . . . Peak Influence 132 | 5 34 60 73 132 Initial . | . . . . . Average 22 | . 8 18 25 41 Influence Increases 697 | 5 54 146 189 303 Destroy 0b10 Robot/C 360 | . . 100 60 200 Destroy 0b10 Robot/NC 25 | 5 10 . . 10 Destroy Leader 64 | . . 20 10 34 Allied During Kill 13 | . . . . 13 Successful Hack 40 | . 29 11 . . Disable Machine 30 | . . . 30 . Destroy Structure 15 | . . . 14 1 Partial Spotted 15 | . 15 . . . Lose Combat Pursuer 135 | . . 15 75 45 Influence Decreases 605 | 5 54 146 189 211 Time Decay 485 | 5 44 146 189 101 Lost Part 60 | . 10 . . 50 Lost Ally 60 | . . . . 60 Squads Dispatched 5 | . 1 . 1 3 Investigation 1 | . . . 1 . Extermination . | . . . . . Reinforcement 2 | . 1 . . 1 Assault . | . . . . . Garrison 2 | . . . . 2 Intercept . | . . . . . Searches Triggered . | . . . . . Construction Impeded . | . . . . . Haulers Reinforced . | . . . . . Active Scanning Responses . | . . . . . Cargo Convoy Interrupts . | . . . . . Stealth | -11 -10 -9 -9 -8 --------- Run | Yrd Mat Mat Min Mat Distress Signals 2 | . . 1 . 1 Communications Jammed . | . . . . . Distress Signals . | . . . . . Times Spotted 41 | . 3 9 8 21 Peak Tracking Total 7 | . 2 3 3 7 Tactical Retreats 6 | . . 1 4 1 Traps | -11 -10 -9 -9 -8 ------- Run | Yrd Mat Mat Min Mat Traps Triggered 1 | . 1 . . . Indirectly . | . . . . . Trap Hack Attempts . | . . . . . Triggered . | . . . . . Disarmed . | . . . . . Reprogrammed . | . . . . . Reused . | . . . . . Traps Extracted . | . . . . . Installed . | . . . . . Triggered . | . . . . . Machines | -11 -10 -9 -9 -8 ---------- Run | Yrd Mat Mat Min Mat Machines Disabled 2 | . . . 2 . Max in Single Turn 1 | . . . 1 . Machines Repaired . | . . . . . Machines Dismantled . | . . . . . Machines Sabotaged . | . . . . . Overloaded Fab Kills . | . . . . . Hacking | -11 -10 -9 -9 -8 --------- Run | Yrd Mat Mat Min Mat Machines Accessed 8 | . 3 3 1 1 Terminals 7 | . 3 3 . 1 Fabricators . | . . . . . Repair Stations . | . . . . . Recycling Units . | . . . . . Scanalyzers . | . . . . . Garrison Access . | . . . . . Total Hacks 19 | . 11 5 1 2 Successful 11 | . 6 4 1 . Failed 8 | . 5 1 . 2 Catastrophic 2 | . 2 . . . Database Lockouts . | . . . . . Manual . | . . . . . Terminals 18 | . 11 5 . 2 Fabricators . | . . . . . Repair Stations . | . . . . . Recycling Units . | . . . . . Scanalyzers . | . . . . . Garrison Access . | . . . . . Terminal Hacks 11 | . 6 4 1 . Record 1 | . 1 . . . Open Door 1 | . . . 1 . Emergency Access Points 1 | . . 1 . . Locate Traps 3 | . 2 1 . . Dispatch Records 1 | . . 1 . . Surveillance Status 1 | . . 1 . . Patrol Status 1 | . 1 . . . Recall Investigation 1 | . 1 . . . Registered Components 1 | . 1 . . . Fabricator Hacks . | . . . . . Repair Station Hacks . | . . . . . Recycling Unit Hacks . | . . . . . Scanalyzer . | . . . . . Garrison Access Hacks . | . . . . . Unauthorized Hacks . | . . . . . Terminals . | . . . . . Fabricators . | . . . . . Repair Stations . | . . . . . Recycling Units . | . . . . . Scanalyzers . | . . . . . Garrison Access . | . . . . . Data Cores Recovered . | . . . . . Used . | . . . . . Hacking Detections 7 | . 3 3 . 1 Full Trace Events . | . . . . . Feedback Events . | . . . . . Feedback Blocked . | . . . . . Robot Schematics Acquired . | . . . . . Robots Built . | . . . . . Authchips . | . . . . . Time . | . . . . . Total Robot Build Rating . | . . . . . Part Schematics Acquired . | . . . . . Parts Built . | . . . . . Authchips . | . . . . . Time . | . . . . . Total Part Build Rating . | . . . . . Part Studies Acquired . | . . . . . Parts Repaired . | . . . . . Time . | . . . . . Parts Recycled . | . . . . . Recycled Matter . | . . . . . Retrieved Matter . | . . . . . Retrieved Components . | . . . . . Parts Scanalyzed . | . . . . . Part Schematics Acquired . | . . . . . Parts Damaged . | . . . . . Bothacking | -11 -10 -9 -9 -8 ------------ Run | Yrd Mat Mat Min Mat Used RIF Installer . | . . . . . Robots Hacked . | . . . . . Non-combat . | . . . . . Combat . | . . . . . Robot Hacks Applied . | . . . . . Relay Couplers Released . | . . . . . Fabnet Peak Effective % . | . . . . . Robots Rewired . | . . . . . Allies Hacked . | . . . . . Hacks Repelled . | . . . . . Allies | -11 -10 -9 -9 -8 -------- Run | Yrd Mat Mat Min Mat Total Allies 3 | . . . 3 . Largest Group 3 | . . . 3 3 Highest-Rated Group 40 | . . . 40 40 Highest-Rated Ally 16 | . . . 16 16 Total Orders . | . . . . . Ally Attacks 22 | . . . . 22 Total Damage 214 | . . . . 214 Kills 2 | . . . . 2 Allies Corrupted . | . . . . . Allies Melted . | . . . . . Intel | -11 -10 -9 -9 -8 ------- Run | Yrd Mat Mat Min Mat Active Infowar (turns) 106 | . 62 . . 44 Optics 44 | . . . . 44 Seismic 62 | . 62 . . . Robot Analysis Total . | . . . . . Derelict Logs Recovered 1 | . . . 1 . Drone Launches . | . . . . . Drone Recoveries . | . . . . . Exploration | -11 -10 -9 -9 -8 ------------- Run | Yrd Mat Mat Min Mat Turns Passed 1614 | 78 205 452 618 261 Spaces Moved 1297 | 63 218 363 495 158 Core 2 | 2 . . . . Treads . | . . . . . Legs . | . . . . . Wheels 1295 | 61 218 363 495 158 Hover . | . . . . . Flight . | . . . . . Fastest Speed 50 | 50 80 90 100 100 Average Speed 100 | 79 80 98 111 100 Slowest Speed 115 | 80 90 115 115 100 Overloaded Moves . | . . . . . Propulsion Burnouts . | . . . . . Robots Hopped . | . . . . . Potential Cave-ins . | . . . . . Cave-ins Triggered . | . . . . . Exploration Rate (%) 33 | 4 30 31 87 13 Regions Visited 4 Branch Regions 1 Pre-discovered Areas . | . . . . . Known Exits Taken 3 | . 1 1 1 . Unknown Exits Taken 1 | 1 . . . . Scrap Searched 1 | . . . 1 . Spaces Dug . | . . . . . Terrain Destroyed 15 | . . . 14 1 Melee . | . . . . . Projectile 7 | . . . 6 1 AOE 8 | . . . 8 . Terrain Rammed . | . . . . . Walls Destroyed . | . . . . . Machines Disabled . | . . . . . Actions | -11 -10 -9 -9 -8 --------- Run | Yrd Mat Mat Min Mat Total 1473 | 75 232 416 538 212 Wait 39 | . . 11 14 14 Move 1293 | 62 217 362 494 158 Hop . | . . . . . Pick Up 14 | 1 2 6 2 3 Fast Attach 12 | 6 2 1 2 1 Attach 8 | . 1 2 2 3 Detach 4 | . 1 1 2 . Swap 11 | . 2 5 1 3 Drop 10 | . . 5 4 1 Fire 66 | 6 7 13 11 29 Melee 16 | . . 10 6 . Ram . | . . . . . Kick . | . . . . . Crush . | . . . . . Escape Stasis . | . . . . . Rewire . | . . . . . Trap . | . . . . . Miscellaneous . | . . . . . Route ------- -11/Scrapyard -10/Materials -9/Materials -9/Mines -8/Materials History --------- Turn | Location | Event 25 | -11/Scrapyard | Discovered new exit (range 16) 79 | -11/Scrapyard | Entered Materials 218 | -10/Materials | Discovered new exit (range 10) 283 | -10/Materials | Identified exit to Materials 284 | -10/Materials | Entered another Materials area 284 | -9/Materials | Evolved 2 slots: Utility x2 327 | -9/Materials | Build established: Mutant 705 | -9/Materials | Discovered new exit (range 15) 728 | -9/Materials | Identified exit to Mines 736 | -9/Materials | Entered Mines 844 | -9/Mines | Met a Derelict shopkeep closing up shop 1135 | -9/Mines | Learned Materials non-interactive machine intel 1239 | -9/Mines | Discovered new exit (range 10) 1241 | -9/Mines | Found a hidden stash of uninstalled traps 1250 | -9/Mines | Identified exit to Materials 1255 | -9/Mines | Assisted by bots powering up and referring to "LRC-V3" 1354 | -9/Mines | Entered Materials 1354 | -8/Materials | Accompanied by 3 allies 1354 | -8/Materials | Evolved 2 slots: Propulsion x1, Utility x1 1355 | -8/Materials | Loaded intel: 27 non-interactive machine locations 1485 | -8/Materials | Garrison activated, responded to threat 1493 | -8/Materials | Lost 3 allies 1615 | -8/Materials | Self-destructed Last Messages --------------- 01578_ Arc Projector destroyed. 01578_ System corrupted by crushing effect (+5). 01580_ K-01 Serf collects debris. 01581_ Visual Processing Unit destroyed. 01581_ System corrupted by crushing effect (+4). 01581_ Knocked back. 01582_ B-36 Bruiser destroyed. 01583_ K-01 Serf collects debris. 01586_ System corrupted: Energy discharge (-19). 01588_ K-01 Serf collects debris. 01588_ G-47 Trooper destroyed. 01592_ K-01 Serf collects debris. 01602_ Critical hit (Burn: +37). 01605_ K-01 Serf collects debris. 01608_ Arc Projector destroyed. 01611_ K-01 Serf collects debris. 01612_ System corrupted: Component data lost. 01612_ S-10 Pest destroyed. 01614_ Imp. Ion Engine destroyed. 01615_ K-01 Serf collects debris. Map ----- +----------------------------------------------------+ | ??????????????????# #??"""?????????????????"""?? | | ?????????????????## #??"""?????????????????"""?? | | ????????????????? #??"""?????????????????"""?? | | ?????????????????? +??????????????????????????? | | ?????????????????? #??????????????????????????? | | ??????????????????# #??????????????????????????? | | ??????????????????# #??????????????????????????? | | ??????????????????# #??????????????????????????? | | ""????????????????# #??????????????????????????? | | ""????????????"""?# % #??????????????????????????? | | ""????????????"""?# #??????????????????????????? | | ??????????????"""?#%% #??????????????????????????? | | ??????????????????#%= ###########????????????????? | | ??????????????????#[ =# #????????????????? | | ??????????????????#**%# #????????????????? | | ??????????????????# % # #????????????????? | | ??????????????????#*%[# """ """ #????????????????? | | ??????????????????# / """ """ #????????????????? | | ??????????????????# # """ """ #????????????????? | | ??????????????????### # ?????????????????? | | ????????????????????#g# #????????????????? | | ????????????????#####g###########????????????????? | | ????????????"""?# *=! #??????????????????????? | | ????????????"""?# #??????????????????????? | | ????????????"""?# k = #??????????????????????? | | ????????????????# /%=@#??????????????????????? | | ????????????"""?# #????########??????????? | | ????????????"""?# a #????#]]==]/#??????????? | | ????????????"""?# [%= #????#]]== #??????????? | | ????????????????# s%g #????# #??????????? | | ????????????????#####u#####???## ###??????????? | | ??????????????????# !=%[####### #????????????? | | ??????????????????# % [ ##########???? | | ??????????????????# * % ! % *%! ?? | | ??????????????????# | !%= ######### ???? | | ??????????????????# ####### = #???????# ???? | | ??????????????????#######?????## ########## ???? | | ???????????????????????######### ## ## #??? | | ???????????????????????+ # "# T ## #??? | | ???????????????????????# " ## ## #??? | | ???????????????????????# = # ## ! ! ## #??? | | ???????????????????????######### ## ## #### | | ??????????????????????????????## ## ## | | ??????????????????????????????# ###/##### | | ??????????????????????????????# | | ?????????????????????????? + " | | ??????????????????????????????# | | ??????????????????????????????# ] ##########+### | | ??????????????????????????????#######????# | | ????????????????"""??????????????????????# | +----------------------------------------------------+ Best States ------------- Heat Dissipation 45 Energy Generation 12 Energy Capacity 265 Matter Stores 300 Matter Capacity 300 Sight Range 18 Terrain Scan Density 10 Armor Coverage 150 Evasion (%) 44 Kinecelleration 30 Item Schematics ----------------- None Robot Schematics ------------------ None Fabricated ------------ Nothing Repaired ---------- Nothing Studied --------- None Alien Tech Used ----------------- None Achievements -------------- None Challenges ------------ None Game ------ Seed FortressCargoRipteeth Manual? 0 Play Time 00:20:26 Cumulative 37.0 hours Start 2025.11.07 @ 21:18:13 End 2025.11.07 @ 21:47:16 Sessions 1 Manual Loads 0 Difficulty Rogue Special Mode None Game No. 47 Rogue 47 Adventurer 0 Explorer 0 Win Type - Total 0 Types 0/0/0/0/0/0/0/0/0/0 Lore% 26 Gallery% 29 Achievement% 20 Wizard Run 0 Options --------- Layout 1 ASCII 0 Keyboard 1 Movement Arrows Keybinds 0 Fullscreen 2 Font 24/Smallcaps Map View 50x35 Zoom Use 0% Tactical HUD 1 Map Filters NONE Filters NONE Steam 1 RUN: eaf4510e-7a00-4698-9fe8-73429837c597